[Event "GCT Superbet Rapid Poland 2025"]
[Site "Warsaw"]
[Date "2025.04.26"]
[Round "2.5"]
[White "Praggnanandhaa R"]
[Black "Aravindh, Chithambaram VR."]
[Result "1-0"]
[ECO "D31"]
[WhiteElo "2758"]
[BlackElo "2749"]
[Annotator "TA"]
[PlyCount "117"]
[EventDate "2025.??.??"]
[EventType "rapid"]
[TimeControl "1500+10"]

{[%evp 13,117,3,12,13,34,25,42,0,0,3,23,6,4,6,16,5,63,59,110,99,148,139,350,101,98,96,102,45,41,41,41,22,37,32,43,43,29,0,0,0,0,0,21,19,41,22,30,0,0,-6,-28,-28,0,0,0,-21,-13,-13,0,0,0,0,0,-10,0,-12,-12,-245,-243,-362,-362,-354,-354,-445,-445,-445,-445,-445,-445,-766,-759,-752,-752,-576,-568,-568,-568,-529,15,14,14,14,14,14,15,15,15,18,19,26,29964,29964,29984,29984,29990,29991]} 1. c4 {[%emt 0:00:02]} e6 {[%emt 0:00:05]} 2. Nc3 {[%emt 0:00:02]} d5 {[%emt 0:00:02]} 3. d4 {[%emt 0:00:01]} Be7 {[%emt 0:00:05]} 4. cxd5 {[%emt 0:00:06]} exd5 {[%emt 0:00:03]} 5. Bf4 {[%emt 0:00:02]} c6 {[%emt 0:00:30]} 6. e3 {[%emt 0:00:12]} Bf5 {[%emt 0:00:04]} 7. Nge2 $1 {[%emt 0:00:04][%mdl 4] now scores much better than the old 7.g4.} Nf6 {[%emt 0:01:17]} 8. Ng3 {[%emt 0:00:13] D31: Queen's Gambit Declined: Semi-Slav without ...Nf6 (+ Marshall Gambit and Noteboom) and Exchange Variation lines without ...Nf6.} Be6 {[%emt 0:00:50]} 9. Bd3 {[%emt 0:01:02]} O-O {[%emt 0:00:17]} 10. Nf5 {[%emt 0:01:40] White is slightly better.} ({RR} 10. O-O Re8 11. h3 Nbd7 12. Rc1 Nf8 13. Nge2 Ng6 14. Bg3 Bd6 15. Bxd6 Qxd6 16. f3 Nh5 17. Qd2 Ng3 18. Nxg3 Qxg3 19. Qf2 Qd6 20. f4 f5 21. Nb1 b6 22. Qc2 Bd7 23. Rfe1 Ne7 24. Nd2 Rac8 {Svidler,P (2755)-Radjabov,T (2781) Porto Carras 2011 0-1 (53)}) ({RR} 10. O-O Re8 11. h3 Nbd7 12. Be5 Nb6 13. Nge2 Nc8 14. Qc2 h6 15. Bh2 Bd6 16. Nf4 Bb8 17. f3 Nb6 18. Qf2 Qd7 19. g4 Bd6 20. Rad1 Rad8 21. Kh1 Qc7 22. Qh4 Qe7 23. Rg1 Nh7 24. Qf2 c5 {Deuer,M (2458)-Woong,Z (2139) Biel SUI 2024 1-0 (55)}) 10... Bxf5 {[%emt 0:02:17]} 11. Bxf5 {[%emt 0:00:02]} Re8 {[%emt 0:00:02]} 12. Qb3 $146 {[%emt 0:03:40]} (12. O-O Nbd7 13. Qb3 Qb6 14. Qc2 g6 15. Bh3 Nf8 16. Rac1 Nh5 17. Be5 f6 18. Na4 {½-½ Tang,A (2416)-Tarjan,J (2478) North American op 25th 2015 (3)}) ({RR} 12. O-O Nbd7 13. Qc2 g6 14. Bd3 Nf8 15. h3 Ne6 16. Be5 Rf8 17. Bxf6 Bxf6 18. b4 Rc8 19. Na4 b6 20. Rac1 Qd6 21. Qb3 Be7 22. a3 f5 23. g3 g5 24. Qc2 f4 25. Bxh7+ Kh8 26. Qg6 Rf6 {Wallis,C (2349)-Zelesco,K (2407) Melbourne 2018 0-1 (44)}) ({RR} 12. O-O Nbd7 13. Qb3 Qb6 14. Qc2 g6 15. Bh3 Nf8 16. Rac1 Nh5 17. Be5 f6 18. Na4 Qd8 19. Bg3 Nxg3 20. hxg3 Bd6 21. Qb3 Rb8 22. Bg4 f5 23. Bf3 Ne6 24. Rfd1 Kg7 25. Nc5 Nxc5 26. dxc5 Be5 {Tang,A (2416)-Tarjan,J (2478) Las Vegas 2015 ½-½ (59)}) 12... Qb6 {[%emt 0:03:31]} 13. Qc2 {[%emt 0:01:29]} Nbd7 {[%emt 0:00:05]} 14. h4 {[%emt 0:03:17]} Rad8 {[%emt 0:04:30]} (14... g6 $11 15. Bh3 Qa6) 15. O-O-O $14 {[%emt 0:00:54]} c5 {[%emt 0:04:17]} ({Black should try} 15... g6 $14) 16. g4 $16 {[%emt 0:03:27] White is much more active.} cxd4 {[%emt 0:04:43]} (16... g6 $142) 17. Rxd4 {[%emt 0:01:22][%cal Og4g5]} (17. exd4 $6 Bb4 $11) 17... Bb4 $2 {[%emt 0:03:27]} (17... Bc5 $16 {might work better.}) 18. g5 $2 {[%emt 0:06:10]} (18. Nxd5 Nxd5 19. Rxd5 (19. Bxh7+ Kf8 $11) 19... Rc8 20. Bxh7+ Kf8 21. Rxd7 Rxc2+ 22. Bxc2 Qe6 $15) (18. Na4 $1 $18 {[%cal Ra4b6]} Qb5 19. Bd3) 18... Bxc3 {[%emt 0:00:11]} 19. bxc3 {[%emt 0:00:04]} (19. Qxc3 $2 Rc8 20. gxf6 Rxc3+ 21. bxc3 Nxf6 $19) 19... Ne4 {[%emt 0:00:15]} 20. f3 {[%emt 0:02:13]} ({Better is} 20. Rhd1 $16 Ndc5 21. f3 (21. Rxd5 Rxd5 22. Rxd5 Qa6 $14)) 20... Nxc3 $14 {[%emt 0:00:30]} 21. Bxd7 {[%emt 0:00:07] A strong pair of Bishops.} (21. Qxc3 $2 Rc8 $19) (21. Bxh7+ $2 Kh8 22. Bf5 (22. Qxc3 $2 Rc8 $19) 22... Ne2+ 23. Qxe2 Qxd4 24. exd4 Rxe2 $19) 21... Ne2+ $1 {[%emt 0:00:24]} 22. Qxe2 {[%emt 0:00:03]} Qxd4 {[%emt 0:00:08]} 23. exd4 {[%emt 0:00:34]} (23. Bxe8 $5 Qa1+ $8 24. Kd2 Qxh1 25. Ba4 $11) 23... Rxe2 {[%emt 0:00:02]} 24. Bg4 {[%emt 0:00:10]} Rxa2 {[%emt 0:00:36]} 25. Re1 {[%emt 0:01:16]} Ra1+ {[%emt 0:00:12]} 26. Kd2 {[%emt 0:00:00]} Rxe1 {[%emt 0:00:09]} 27. Kxe1 {[%emt 0:00:02]} Re8+ {[%emt 0:00:55]} 28. Kd2 {[%emt 0:00:01][%mdl 1024] White has compensation.} f6 {[%emt 0:00:02] Wards off Be5} 29. gxf6 {[%emt 0:00:31]} gxf6 {[%emt 0:00:01]} 30. Bf5 {[%emt 0:00:02]} a5 {[%emt 0:00:23]} 31. Bc7 {[%emt 0:00:52]} a4 {[%emt 0:00:14]} 32. Bd6 {[%emt 0:00:02]} b5 {[%emt 0:00:12]} 33. Ba3 {[%emt 0:00:31]} Kf7 {[%emt 0:00:03]} 34. Bd3 {[%emt 0:00:21]} Rg8 {[%emt 0:00:15]} 35. Bxb5 {[%emt 0:00:11]} Rg2+ {[%emt 0:00:09]} 36. Kc3 {[%emt 0:00:11]} Rf2 {[%emt 0:00:06]} 37. Bxa4 {[%emt 0:00:11]} Rxf3+ {[%emt 0:00:04]} 38. Kb4 {[%emt 0:00:01]} Ke6 {[%emt 0:00:05]} 39. h5 {[%emt 0:00:18]} f5 {[%emt 0:00:14]} 40. Bc1 $2 {[%emt 0:00:12]} (40. h6 $11 {and White stays safe.}) 40... f4 $1 $19 {[%emt 0:00:15]} (40... Rd3 41. Bb5 Rxd4+ 42. Kc5 $11) 41. Bc2 {[%emt 0:00:01]} (41. Bb3 $142) 41... Rf1 {[%emt 0:00:14]} 42. Bd2 {[%emt 0:00:12][%cal Oc2d3] [#]} f3 $1 {[%emt 0:00:12]} 43. Kc3 {[%emt 0:00:16][%cal Oh5h6]} Rh1 {[%emt 0:00:07]} 44. Be3 {[%emt 0:00:10] Against f2} Rxh5 {[%emt 0:00:05]} 45. Kd3 {[%emt 0:00:11] [#]} Kf5 $1 {[%emt 0:00:14]} 46. Ba4 {[%emt 0:00:11]} (46. Bf2 $142 Kg4 47. Ba4) 46... Kg4 {[%emt 0:00:07]} 47. Bf2 {[%emt 0:00:08]} Kh3 {[%emt 0:00:08]} 48. Be8 {[%emt 0:00:12]} Rh6 {[%emt 0:00:08] Strongly threatening ...Kg2.} 49. Bf7 {[%emt 0:00:07]} Kg2 {[%emt 0:00:04]} 50. Ke3 {[%emt 0:00:02]} Rb6 $2 {[%emt 0:00:25]} (50... Ra6 $19 51. Be1 Rd6) 51. Bxd5 $11 {[%emt 0:00:03]} Rf6 {[%emt 0:00:08]} 52. Be4 {[%emt 0:00:13]} Rf8 {[%emt 0:00:13]} 53. d5 {[%emt 0:00:21]} h5 {[%emt 0:00:14]} 54. Bh4 {[%emt 0:00:12]} Kh3 $1 {[%emt 0:00:07]} 55. Be1 {[%emt 0:00:08][%cal Od5d6] Hoping for d6!.} Kg2 {[%emt 0:00:06]} 56. d6 {[%emt 0:00:02] White threatens d7 and mate.} Rd8 {[%emt 0:00:15][%mdl 8192]} (56... Rf6 $11) 57. Bxf3+ {[%emt 0:00:08] White mates.} Kh2 {[%emt 0:00:05]} 58. Ba5 {[%emt 0:00:13]} ({Stronger than} 58. Bxh5 Rxd6 $11) 58... Re8+ {[%emt 0:00:16]} 59. Kf2 {[%emt 0:00:08] What a fight! Weighted Error Value: White=0.31/Black=0.30 Loses game: 	White=1 	Black=2 Missed win: 	White=1 	Black=1 Mistake: 	White=3 	Black=3 Inaccurate: 	White=3 	Black=1 OK: 	White=16 	Black=20 Best: 	White=5 	Black=5 Strong: 	--- 	Black=5} 1-0

[Event "GCT Superbet Rapid Poland 2025"]
[Site "Warsaw"]
[Date "2025.04.26"]
[Round "3.1"]
[White "Aravindh, Chithambaram VR."]
[Black "Aronian, Levon"]
[Result "1-0"]
[ECO "C07"]
[WhiteElo "2749"]
[BlackElo "2747"]
[Annotator "TA"]
[PlyCount "111"]
[EventDate "2025.??.??"]
[EventType "rapid"]
[TimeControl "1500+10"]

{[%evp 11,111,12,26,14,42,12,35,16,27,37,22,0,0,0,0,0,0,0,0,-27,-20,-23,-15,-47,0,-11,0,0,0,0,8,8,16,0,13,0,18,19,28,25,44,0,176,174,214,215,211,210,213,210,209,206,217,159,167,160,140,155,245,248,242,77,298,298,298,237,343,343,397,290,287,290,290,247,361,335,298,290,903,882,785,523,29961,29962,29961,29963,29964,29965,29965,29967,29967,29968,29968,29969,29970,29971,29977,29967,29967,29968,29978,29979]} 1. e4 {[%emt 0:00:05]} e6 {[%emt 0:00:04]} 2. d4 {[%emt 0:00:05]} d5 {[%emt 0:00:01]} 3. Nd2 {[%emt 0:01:03]} c5 {[%emt 0:00:02]} 4. Ngf3 {[%emt 0:01:48]} cxd4 {[%emt 0:00:11]} 5. Nxd4 {[%emt 0:00:03]} Ne7 {[%emt 0:00:51]} 6. exd5 {[%emt 0:00:15]} Nxd5 {[%emt 0:00:02]} 7. N2f3 {[%emt 0:00:31] C07: French Tarrasch: 3...c5, 4 Ngf3 and 4 exd5 Qxd5.} Nd7 {[%emt 0:00:57]} ({RR} 7... Bb4+ 8. Bd2 Bc5 9. Nb3 Be7 10. Bd3 O-O 11. Qe2 Nd7 12. h4 Qc7 13. O-O-O b6 14. Kb1 Bb7 15. Ng5 N7f6 16. Nd4 Bc5 17. Ndf3 Nf4 18. Bxf4 Qxf4 19. g3 Bxf3 20. Nxf3 Qc7 21. Ne5 Rad8 22. f4 {Duda,J (2731)-Grischuk,A (2745) chess.com INT 2022 ½-½ (42)}) 8. Be2 $146 {[%emt 0:01:15]} ({RR} 8. a3 a6 9. Be2 Qc7 10. c4 N5f6 11. O-O Bd6 12. b4 b6 13. h3 O-O 14. Be3 Bb7 15. Rc1 Rac8 16. Qb3 Rfe8 17. Rfd1 Qb8 18. a4 Ne4 19. a5 Bf4 20. axb6 Nxb6 21. c5 Nd5 22. c6 Bxe3 {Ramiro Ovejero,J (2392)-Gemy Vargas,J (2325) La Puebla de Alfinden 2010 ½-½ (55)}) ({RR} 8. Bd3 Be7 9. O-O O-O 10. c4 N5f6 11. Bf4 a6 12. Re1 Qb6 13. Qe2 Re8 14. Be3 Qc7 15. Bc2 Nf8 16. a3 Ng6 17. b4 Bd7 18. Rec1 Rac8 19. h3 Ne5 20. Nxe5 Qxe5 21. Nf3 Qc7 22. Bd4 g6 {Molnar,E (2234)-Szucs,V (2065) Slovakia SVK 2023 ½-½ (34)}) ({RR} 8. g3 Be7 9. Bg2 O-O 10. O-O N7b6 11. Qe2 Qc7 12. Rd1 Bf6 13. Bg5 a6 14. Bxf6 gxf6 15. Nh4 Ne7 16. Qh5 Kg7 17. b3 Qe5 18. Qg4+ Qg5 19. Qe2 Ng6 20. Nhf3 Qc5 21. c4 Bd7 22. Qe3 Qc7 {Bertona,F (2432)-Pomes Marcet,J (2396) La Roda 2006 ½-½ (60)}) 8... a6 {[%emt 0:00:37]} 9. O-O {[%emt 0:00:25] White is slightly better.} Qc7 {[%emt 0:00:05]} 10. Re1 {[%emt 0:00:24]} Be7 $146 {[%emt 0:00:54]} (10... Bc5 11. a3 O-O 12. c4 Nf4 13. b4 Be7 14. Bf1 b6 15. g3 Ng6 16. h4 Bb7 {½-½ Kosakowski,J (2437)-Jumabayev,R (2631) Wch Rapid Warsaw 2021 (1)}) 11. c4 {[%emt 0:01:31]} (11. Nf5 $5 O-O 12. Nxe7+ Nxe7 13. a4 $14) 11... N5f6 {[%emt 0:00:03]} 12. a3 {[%emt 0:01:02]} O-O {[%emt 0:00:23]} 13. b4 {[%emt 0:00:15]} b6 {[%emt 0:00:03]} 14. Bf1 {[%emt 0:00:45]} Re8 {[%emt 0:01:56]} 15. Bg5 {[%emt 0:01:53]} Bb7 {[%emt 0:00:12]} 16. Bh4 {[%emt 0:00:46]} Bd6 {[%emt 0:00:35]} 17. Qb3 {[%emt 0:00:20]} g6 {[%emt 0:00:42]} (17... h6 $15 {deserves consideration.}) 18. Bg3 {[%emt 0:04:29]} Bxg3 {[%emt 0:00:09]} 19. hxg3 {[%emt 0:00:02]} Ng4 {[%emt 0:01:18]} 20. Nc2 {[%emt 0:02:32]} a5 {[%emt 0:01:21]} 21. Ne3 {[%emt 0:02:41]} Ndf6 {[%emt 0:00:09]} 22. Rac1 {[%emt 0:01:00]} (22. Nxg4 Nxg4 23. Rac1 axb4 24. axb4 h5 25. Qb2) 22... axb4 {[%emt 0:01:19]} (22... Nxf2 $5 23. Kxf2 Nh5 $14) 23. axb4 {[%emt 0:00:03]} (23. Nxg4 {is more complex.} Nxg4 24. axb4 Red8 25. Qb2) 23... Nxe3 {[%emt 0:05:19]} 24. Qxe3 {[%emt 0:00:16]} Bxf3 {[%emt 0:00:30]} 25. gxf3 {[%emt 0:00:34]} Ra4 {[%emt 0:00:42]} 26. c5 {[%emt 0:01:57][%cal Bc4c5,Bc5b6,Bb6b7][%mdl 32] White has a queen side majority} Rxb4 {[%emt 0:00:02]} (26... Nd5 $1 $11 {and Black is okay.} 27. Qd2 (27. cxb6 Qe7 $15) 27... Rd8 (27... Rxb4 28. c6 $17) (27... Nxb4 28. Bb5 $16)) 27. Qa3 $1 $36 {[%emt 0:01:13][%mdl 2048] Keeping Black busy.} Rd4 {[%emt 0:02:29] [#]} (27... bxc5 $2 28. Qxb4 $18) 28. Qb2 $1 {[%emt 0:00:02][%csl Bb6,Bd4]} e5 {[%emt 0:00:02]} (28... bxc5 29. Qxd4 $18) 29. cxb6 {[%emt 0:01:47]} Qd6 {[%emt 0:00:01]} 30. b7 {[%emt 0:00:02]} Rb4 {[%emt 0:01:10]} 31. Qa3 {[%emt 0:00:03]} Qb6 {[%emt 0:00:02]} 32. Rc6 {[%emt 0:00:02]} Qxc6 {[%emt 0:01:00]} 33. Qxb4 {[%emt 0:00:02]} Rb8 {[%emt 0:00:01]} 34. Rb1 {[%emt 0:00:27] White is more active.} (34. Rxe5 Rxb7 35. Bb5 Qxf3 $15) 34... Ne8 {[%emt 0:02:12]} (34... Kg7 $16 35. Qb2 Qxf3) 35. Bd3 {[%emt 0:00:54]} Nd6 {[%emt 0:00:07][%cal Rb8b7] [#]} 36. Be4 $2 {[%emt 0:00:03]} (36. Qb6 $1 $18 {[%cal Rb6c6] and the rest is easy.} Qxb6 37. Rxb6) 36... Qc7 {[%emt 0:00:01] A mistake that costs the game.} (36... Nxe4 $16 37. fxe4 (37. Qxe4 Qxe4 38. fxe4 Kf8 $14) 37... Kg7) 37. Bd5 {[%emt 0:00:12]} Kg7 {[%emt 0:00:36]} 38. Qb6 {[%emt 0:00:03]} Qd7 {[%emt 0:03:23]} (38... Ne8 39. Qb5 Qc3) 39. Qb2 {[%emt 0:00:10]} Qf5 {[%emt 0:00:19]} 40. Re1 {[%emt 0:00:13]} Qf6 {[%emt 0:00:18]} 41. Ra1 {[%emt 0:00:14] Black is weak on the light squares} ({Don't do} 41. Qxe5 Qxe5 42. Rxe5 Nxb7 $18) (41. Rxe5 Rxb7 42. Qa1 (42. Bxb7 Nc4 $11) 42... Rb5 $16) 41... Nxb7 {[%emt 0:00:34]} 42. Bxb7 {[%emt 0:00:17] and Ra7 should not be overlooked} h5 {[%emt 0:00:01]} (42... Qxf3 {was worth a try.} 43. Qxe5+ Qf6 44. Qxb8 Qxa1+ 45. Kg2 Qd4) 43. Ra8 {[%emt 0:00:17]} Rxa8 {[%emt 0:00:57]} 44. Bxa8 {[%emt 0:00:02]} h4 $2 {[%emt 0:00:13]} (44... Qd6 45. Kg2 Kh7) 45. gxh4 {[%emt 0:00:04]} Qf4 {[%emt 0:00:18]} 46. Bd5 {[%emt 0:00:08]} f6 {[%emt 0:00:18][%cal Bf7f6,Bf6f5][%mdl 32]} 47. Qb7+ {[%emt 0:00:28] White mates.} Kh6 {[%emt 0:00:01]} 48. Bg8 {[%emt 0:00:04][%csl Gg8][%cal Rb7h7]} Qxh4 {[%emt 0:00:01]} 49. Qh7+ {[%emt 0:00:04]} Kg5 {[%emt 0:00:01]} 50. Qxh4+ {[%emt 0:00:03]} Kxh4 {[%emt 0:00:01] KB-K3P} 51. Kg2 {[%emt 0:00:04]} f5 {[%emt 0:00:01]} 52. Bd5 {[%emt 0:00:29]} Kg5 {[%emt 0:00:09]} 53. Kg3 {[%emt 0:00:02]} Kh5 {[%emt 0:00:05]} 54. Be6 {[%emt 0:00:19]} Kg5 {[%emt 0:00:02]} 55. Bd7 {[%emt 0:00:03]} Kh5 {[%emt 0:00:29]} 56. f4 {[%emt 0:00:12] Weighted Error Value: White=0.16 (very precise) /Black=0.43 Loses game: 	--- 	Black=2 Missed win: 	White=1 	--- Mistake: 	--- 	Black=5 Inaccurate: 	White=4 	Black=1 OK: 	White=13 	Black=18 Best: 	White=3 	Black=2 Strong: 	White=2 	---} 1-0

[Event "GCT Superbet Rapid Poland 2025"]
[Site "Warsaw"]
[Date "2025.04.26"]
[Round "3.2"]
[White "Deac, Bogdan-Daniel"]
[Black "Praggnanandhaa R"]
[Result "1-0"]
[ECO "E73"]
[WhiteElo "2668"]
[BlackElo "2758"]
[Annotator "TA"]
[PlyCount "100"]
[EventDate "2025.??.??"]
[EventType "rapid"]
[TimeControl "1500+10"]

{[%evp 10,100,38,53,46,33,43,18,43,-6,18,15,12,8,22,0,3,-35,-13,-31,-52,-25,-37,-20,-6,-15,0,-19,-25,-127,-106,-109,-8,-28,24,12,131,109,118,156,169,16,27,24,41,35,68,62,316,206,224,204,190,116,120,102,580,568,1076,1102,1155,1060,1150,973,968,0,927,1213,1157,1143,1218,1210,1226,1224,1171,1164,1095,1073,1045,1041,1458,1106,1523,1504,1351,1348,1170,1074,2509,5165,1671,1046,1477]} 1. d4 {[%emt 0:00:03]} Nf6 {[%emt 0:00:02]} 2. c4 {[%emt 0:00:02]} g6 {[%emt 0:00:02]} 3. Nc3 {[%emt 0:00:03]} Bg7 {[%emt 0:00:01]} 4. e4 {[%emt 0:00:17]} d6 {[%emt 0:00:02]} 5. Be2 {[%emt 0:00:03]} O-O {[%emt 0:00:03]} 6. Be3 {[%emt 0:00:03]} a5 {[%emt 0:00:02] E73: King's Indian: Averbakh Variation without 6...c5.} 7. h3 $5 {[%emt 0:01:21][%mdl 4] Leaves trodden paths.} ({RR} 7. Nf3 Ng4 8. Bg5 h6 9. Bh4 Nf6 10. Nd2 Nc6 11. Nb5 e5 12. d5 Nd4 13. Nxd4 exd4 14. O-O Qe8 15. Bxf6 Bxf6 16. Bd3 Bg7 17. f4 Bd7 18. Qc2 c6 19. Rae1 cxd5 20. exd5 Qc8 21. Ne4 Qc7 {Martirosyan,H (2661)-Praggnanandhaa,R (2757) Biel SUI 2024 ½-½ (40)}) ({RR} 7. h4 h5 8. Nf3 Nc6 9. O-O Bg4 10. Rc1 Nd7 11. Ng5 Nf6 12. f3 Bd7 13. d5 Ne5 14. c5 c6 15. cxd6 exd6 16. dxc6 Bxc6 17. Qd4 Qe7 18. Rfd1 Rfd8 19. Qb6 d5 20. exd5 Ned7 21. Qd4 Nxd5 {Tatarinov,D (2332)-Deac,B (2690) chess.com INT 2024 0-1 (41)}) 7... e5 {[%emt 0:00:56]} 8. d5 {[%emt 0:02:37]} Na6 {[%emt 0:00:01] The position is equal.} 9. Qc2 $146 {[%emt 0:09:21][%mdl 4] An interesting side line.} (9. h4 $14 {should be considered.}) ({RR} 9. g4 Nc5 10. f3 c6 11. Qd2 cxd5 12. cxd5 Bd7 13. h4 h5 14. g5 Ne8 15. Nh3 Nc7 16. Nf2 b5 17. Rc1 b4 18. Ncd1 Nb5 19. Bxb5 Bxb5 20. Bxc5 dxc5 21. Rxc5 Qb6 22. Qe3 a4 23. Kd2 Rab8 {Bryakin,M (2479)-Xu,Z (2509) Novi Sad SRB 2024 ½-½ (38)}) ({RR} 9. g4 Nc5 10. f3 c6 11. Qd2 cxd5 12. cxd5 Bd7 13. h4 h5 14. g5 Ne8 15. Nh3 Nc7 16. Nf2 b5 17. Rc1 b4 18. Ncd1 Nb5 19. Bxb5 Bxb5 20. Bxc5 dxc5 21. Rxc5 Qb6 22. Qe3 a4 23. Kd2 Rab8 {Bryakin,M (2479)-Xu,Z (2509) Novi Sad SRB 2024 ½-½ (38)}) ({RR} 9. g4 Nc5 10. f3 c6 11. Qd2 cxd5 12. cxd5 Bd7 13. h4 h5 14. g5 Ne8 15. Nh3 Nc7 16. Nf2 b5 17. Rc1 b4 18. Ncd1 Nb5 19. Bxb5 Bxb5 20. Bxc5 dxc5 21. Rxc5 Qb6 22. Qe3 a4 23. Kd2 Rab8 {Bryakin,M (2479)-Xu,Z (2509) Novi Sad SRB 2024 ½-½ (38)}) 9... c6 {[%emt 0:00:58]} 10. Nf3 {[%emt 0:02:07]} cxd5 $146 {[%emt 0:01:31]} (10... Nc7 11. O-O-O cxd5 12. cxd5 Na6 13. g4 b6 14. g5 Nh5 15. h4 Bd7 16. Kb1 Nc5 17. Ne1 {1-0 Ratkovic,M (2099)-Panic,A (1842) Belgrade Trophy 21st 2008 (3)}) 11. cxd5 {[%emt 0:00:44]} Nh5 {[%emt 0:00:06]} 12. Qd2 {[%emt 0:01:02]} f5 {[%emt 0:01:22]} 13. Bxa6 {[%emt 0:09:21]} bxa6 {[%emt 0:01:47]} 14. Qd3 {[%emt 0:00:04]} Rb8 {[%emt 0:01:05]} 15. O-O {[%emt 0:00:08]} h6 {[%emt 0:04:22]} 16. Qe2 {[%emt 0:00:16]} Nf6 {[%emt 0:00:32]} 17. Rab1 {[%emt 0:00:14]} Qe8 {[%emt 0:01:53]} (17... Nxe4 18. Nxe4 fxe4 19. Nd2 $14) (17... fxe4 18. Nd2 $14) 18. a3 {[%emt 0:00:08]} g5 {[%emt 0:00:44]} (18... fxe4 19. Nd2 $14) 19. b4 {[%emt 0:00:04]} (19. Rfe1 $11 {remains equal.}) 19... g4 $1 $17 {[%emt 0:01:25]} (19... Nxe4 20. Nxe4 fxe4 21. Nd2 $14) (19... fxe4 $6 20. Nd2 $11) 20. hxg4 {[%emt 0:00:07]} fxe4 {[%emt 0:00:59]} ({Black should try} 20... Nxg4 $17 {White must now prevent ...Qh5.} 21. bxa5 Rxb1 22. Rxb1 Qh5) 21. Nh2 $11 {[%emt 0:00:19]} Qg6 {[%emt 0:00:09]} (21... a4 $142) 22. g5 {[%emt 0:00:05]} (22. bxa5 Bxg4 23. Nxg4 (23. Qxa6 $2 Bf3 $19) 23... Nxg4 24. Rxb8 (24. Qxa6 $2 Qh5 $19) 24... Rxb8 $11) 22... hxg5 {[%emt 0:01:22]} (22... Nh5 $1 $11) 23. bxa5 $16 {[%emt 0:00:01]} Rxb1 {[%emt 0:03:41]} 24. Rxb1 {[%emt 0:00:05] White plays on the queen side and is better} Kf7 {[%emt 0:00:33] [#]} 25. Rb8 $2 {[%emt 0:00:03]} (25. Qc4 $1 $18) 25... Rh8 $11 {[%emt 0:03:10]} 26. Qc4 {[%emt 0:00:07]} Qh5 {[%emt 0:00:11] Counterplay White} 27. Rxc8 {[%emt 0:00:04] White attacks} Qxh2+ {[%emt 0:00:03]} 28. Kf1 {[%emt 0:00:01][%cal Bg1f1,Bf1e2,Be2d2,Bd2c2,Bc2b2,Bb2b3][%mdl 32] Chess con chili.} Rh4 $2 {[%emt 0:00:48][%mdl 8192]} (28... Rxc8 $14 29. Qxc8 Qh1+ 30. Ke2 g4) 29. Qxa6 {[%emt 0:00:51]} (29. Bxg5 Rg4 30. Qc7+ Kg6 31. Bxf6 Qxg2+ 32. Ke1 Bxf6 $18 (32... Qg1+ $2 33. Ke2 $18)) 29... Qh1+ {[%emt 0:00:11]} 30. Ke2 {[%emt 0:00:04]} Qxg2 {[%emt 0:00:24] [#]} 31. Rc7+ {[%emt 0:00:13]} (31. Qxd6 $2 Qg4+ 32. Kd2 Qxc8 $19) (31. Kd1 $1 $18) 31... Kg6 $16 {[%emt 0:00:04]} 32. Qxd6 {[%emt 0:00:01] White is much more active.} Rh1 $2 {[%emt 0:00:10][%mdl 8192]} (32... g4 $16 {is more resistant.}) 33. Kd2 $1 $18 {[%emt 0:00:26]} (33. Qxe5 $2 Qf1+ 34. Kd2 Qd3#) 33... Qf1 {[%emt 0:01:10][%csl Ge4][%cal Rf1d3]} 34. Kc2 {[%emt 0:00:04]} ({Weaker is} 34. Nxe4 Qe1+ 35. Kd3 Qb1+ 36. Rc2 Rd1+ (36... Qd1+ 37. Nd2 $14) 37. Bd2 Qb3+ 38. Rc3 Qb5+ (38... Qxd5+ $2 {too greedy.} 39. Qxd5 Nxd5 40. Rc6+ Kf5 41. f3 $18) 39. Rc4 (39. Ke3 Qa4 $15) 39... Qb3+ 40. Rc3 Qb5+ 41. Rc4 Qb3+ 42. Rc3 $11) 34... Qd3+ {[%emt 0:00:39]} 35. Kb2 {[%emt 0:00:13]} Rh2 {[%emt 0:00:14]} 36. Kb3 {[%emt 0:00:13]} Rh1 {[%emt 0:00:05]} 37. Kb2 $40 {[%emt 0:00:09][%mdl 128] White mounts an attack.} (37. Qxe5 $2 {is a self mate.} Rb1+ 38. Ka4 Qc2#) 37... Rh2 $1 {[%emt 0:00:01]} 38. Qxe5 {[%emt 0:00:13] White is clearly winning.} Qxe3 {[%emt 0:00:23]} 39. Qxh2 {[%emt 0:00:12]} Qd2+ {[%emt 0:00:07]} 40. Kb3 {[%emt 0:00:01]} e3 {[%emt 0:00:01] [#]} 41. Rxg7+ $1 {[%emt 0:00:05]} Kxg7 {[%emt 0:00:28][%mdl 4096] Endgame KQN-KQN. White is two pawns up.} 42. Qc7+ {[%emt 0:00:03]} Kg6 {[%emt 0:00:00]} 43. fxe3 {[%emt 0:00:01]} Qxe3 {[%emt 0:00:12]} 44. a6 {[%emt 0:00:29]} Nxd5 {[%emt 0:00:17]} 45. Qd6+ {[%emt 0:00:16]} Nf6 {[%emt 0:00:01]} 46. Kb4 {[%emt 0:00:05][%cal Od6f6] Qxf6+! would kill now.} Qf2 {[%emt 0:00:17]} 47. Qc5 {[%emt 0:00:19]} Qb2+ {[%emt 0:00:15]} 48. Ka5 {[%emt 0:00:08]} Nd7 {[%emt 0:00:09]} 49. Qd6+ {[%emt 0:00:09]} Kh5 {[%emt 0:00:02]} 50. Ne4 {[%emt 0:00:12][%cal Oa6a7] Black must now prevent a7!.} Ne5 {[%emt 0:00:20] Weighted Error Value: White=0.56/Black=0.79 Loses game: 	--- 	Black=2 Mistake: 	White=4 	Black=3 Inaccurate: 	White=2 	Black=1 OK: 	White=7 	Black=8 Best: 	White=3 	Black=4 Strong: 	White=1 	Black=1} 1-0